[Event "Titled Tuesday Blitz July 25 Early 2023"]
[White "Gontcharov, Vladislav"]
[Black "Harriott, Tyrell"]
[WhiteFideId "4123492"]
[BlackFideId "2086484"]
[WhiteElo "2533"]
[BlackElo "2387"]
[Result "0-1"]
[Round "7"]
[TimeControl "180+2"]
[Date "2023.07.25"]
[WhiteClock "0:00:01"]
[BlackClock "0:00:10"]
[Board "115"]

1. d4 {[%clk 0:03:00]}  e6 {[%clk 0:02:52]} 2. c4 {[%clk 0:02:59]}  d5 {[%clk 0:02:52]} 3. Nc3 {[%clk 0:02:58]}  f5 {[%clk 0:02:52]} 4. Nf3 {[%clk 0:02:56]}  c6 {[%clk 0:02:50]} 5. e3 {[%clk 0:02:56]}  Bd6 {[%clk 0:02:49]} 6. Bd3 {[%clk 0:02:56]}  Nf6 {[%clk 0:02:49]} 7. O-O {[%clk 0:02:56]}  O-O {[%clk 0:02:47]} 8. Qc2 {[%clk 0:02:56]}  Ne4 {[%clk 0:02:46]} 9. Ne2 {[%clk 0:02:56]}  Nd7 {[%clk 0:02:45]} 10. b3 {[%clk 0:02:55]}  Qf6 {[%clk 0:02:44]} 11. Bb2 {[%clk 0:02:52]}  g5 {[%clk 0:02:43]} 12. Ne1 {[%clk 0:02:29]}  Qh6 {[%clk 0:02:33]} 13. f4 {[%clk 0:02:24]}  g4 {[%clk 0:02:26]} 14. Bxe4 {[%clk 0:02:21]}  fxe4 {[%clk 0:02:23]} 15. g3 {[%clk 0:01:59]}  Nf6 {[%clk 0:02:14]} 16. Qc1 {[%clk 0:01:57]}  Rf7 {[%clk 0:02:11]} 17. Ba3 {[%clk 0:01:57]}  Bc7 {[%clk 0:02:10]} 18. Ng2 {[%clk 0:01:55]}  Ne8 {[%clk 0:02:10]} 19. Nh4 {[%clk 0:01:30]}  Bd8 {[%clk 0:02:06]} 20. Ng2 {[%clk 0:01:30]}  Ng7 {[%clk 0:02:05]} 21. Qd2 {[%clk 0:01:24]}  Nf5 {[%clk 0:02:02]} 22. Bb4 {[%clk 0:01:12]}  Qh3 {[%clk 0:01:57]} 23. Kf2 {[%clk 0:01:07]}  Bf6 {[%clk 0:01:45]} 24. Rh1 {[%clk 0:01:06]}  Bd7 {[%clk 0:01:43]} 25. a4 {[%clk 0:01:05]}  Rd8 {[%clk 0:01:42]} 26. Rac1 {[%clk 0:01:03]}  Qh6 {[%clk 0:01:37]} 27. Ba5 {[%clk 0:00:48]}  Rc8 {[%clk 0:01:34]} 28. Bb4 {[%clk 0:00:45]}  Be8 {[%clk 0:01:32]} 29. a5 {[%clk 0:00:45]}  Rd7 {[%clk 0:01:30]} 30. Ba3 {[%clk 0:00:43]}  Qg7 {[%clk 0:01:29]} 31. Bb2 {[%clk 0:00:34]}  Rdd8 {[%clk 0:01:26]} 32. b4 {[%clk 0:00:33]}  Bf7 {[%clk 0:01:22]} 33. b5 {[%clk 0:00:32]}  c5 {[%clk 0:01:16]} 34. cxd5 {[%clk 0:00:21]}  exd5 {[%clk 0:01:15]} 35. Rhd1 {[%clk 0:00:19]}  c4 {[%clk 0:01:14]} 36. Ba3 {[%clk 0:00:19]}  Be8 {[%clk 0:01:12]} 37. Rb1 {[%clk 0:00:18]}  Qc7 {[%clk 0:01:08]} 38. Qb4 {[%clk 0:00:16]}  Be7 {[%clk 0:01:03]} 39. b6 {[%clk 0:00:16]}  Qd7 {[%clk 0:00:54]} 40. Qb2 {[%clk 0:00:15]}  a6 {[%clk 0:00:45]} 41. Bxe7 {[%clk 0:00:14]}  Qxe7 {[%clk 0:00:46]} 42. Nc3 {[%clk 0:00:14]}  Qf7 {[%clk 0:00:39]} 43. Qb4 {[%clk 0:00:14]}  Qe6 {[%clk 0:00:39]} 44. Rh1 {[%clk 0:00:13]}  Bf7 {[%clk 0:00:37]} 45. Ke2 {[%clk 0:00:12]}  Qg6 {[%clk 0:00:36]} 46. Kd2 {[%clk 0:00:12]}  Rd7 {[%clk 0:00:36]} 47. Qa3 {[%clk 0:00:11]}  Qh5 {[%clk 0:00:36]} 48. Rbg1 {[%clk 0:00:08]}  Qh3 {[%clk 0:00:36]} 49. Ne2 {[%clk 0:00:07]}  Qh6 {[%clk 0:00:33]} 50. Qc3 {[%clk 0:00:07]}  Qc6 {[%clk 0:00:32]} 51. h3 {[%clk 0:00:07]}  h5 {[%clk 0:00:30]} 52. Nh4 {[%clk 0:00:07]}  Nxh4 {[%clk 0:00:27]} 53. gxh4 {[%clk 0:00:07]}  Be6 {[%clk 0:00:26]} 54. hxg4 {[%clk 0:00:07]}  Bxg4 {[%clk 0:00:23]} 55. Ng3 {[%clk 0:00:07]}  Kh7 {[%clk 0:00:23]} 56. Ra1 {[%clk 0:00:07]}  Bf3 {[%clk 0:00:23]} 57. Rh2 {[%clk 0:00:07]}  Qg6 {[%clk 0:00:22]} 58. Rg1 {[%clk 0:00:06]}  Rg7 {[%clk 0:00:21]} 59. Ne2 {[%clk 0:00:04]}  Qf6 {[%clk 0:00:20]} 60. Rf1 {[%clk 0:00:02]}  Rcg8 {[%clk 0:00:17]} 61. Rhf2 {[%clk 0:00:02]}  Rg2 {[%clk 0:00:15]} 62. Qb4 {[%clk 0:00:03]}  Qe6 {[%clk 0:00:13]} 63. Qc5 {[%clk 0:00:03]}  R8g7 {[%clk 0:00:12]} 64. Qc7 {[%clk 0:00:04]}  Rxf2 {[%clk 0:00:11]} 65. Qe5 {[%clk 0:00:05]}  Qxe5 {[%clk 0:00:11]} 66. Rxf2 {[%clk 0:00:06]}  Qf5 {[%clk 0:00:10]} 67. Nc3 {[%clk 0:00:01]}  Qh3 {[%clk 0:00:10]} 0-1


[Site "https://www.chess.com"]

[Event "Titled Tuesday Blitz July 25 Early 2023"]
[White "Peiris, T G M"]
[Black "Yurtseven, Melih"]
[WhiteFideId "9901310"]
[BlackFideId "6312160"]
[WhiteElo "2357"]
[BlackElo "2528"]
[Result "0-1"]
[Round "7"]
[TimeControl "180+2"]
[Date "2023.07.25"]
[WhiteClock "0:01:03"]
[BlackClock "0:01:26"]
[Board "118"]

1. e4 {[%clk 0:03:00]}  b6 {[%clk 0:02:57]} 2. f4 {[%clk 0:02:59]}  Bb7 {[%clk 0:02:57]} 3. Nc3 {[%clk 0:02:59]}  c5 {[%clk 0:02:56]} 4. Nf3 {[%clk 0:02:59]}  g6 {[%clk 0:02:56]} 5. Bc4 {[%clk 0:02:59]}  Bg7 {[%clk 0:02:56]} 6. d3 {[%clk 0:03:00]}  d6 {[%clk 0:02:51]} 7. O-O {[%clk 0:02:59]}  Nc6 {[%clk 0:02:51]} 8. a3 {[%clk 0:02:59]}  Nd4 {[%clk 0:02:51]} 9. Ne2 {[%clk 0:02:52]}  Nxf3+ {[%clk 0:02:48]} 10. Rxf3 {[%clk 0:02:52]}  Nf6 {[%clk 0:02:46]} 11. Bb5+ {[%clk 0:02:52]}  Nd7 {[%clk 0:02:45]} 12. Qe1 {[%clk 0:02:48]}  O-O {[%clk 0:02:43]} 13. Rh3 {[%clk 0:02:47]}  f5 {[%clk 0:02:36]} 14. Bc4+ {[%clk 0:02:33]}  Kh8 {[%clk 0:02:35]} 15. Qh4 {[%clk 0:02:27]}  h6 {[%clk 0:02:35]} 16. Qg5 {[%clk 0:02:21]}  Kh7 {[%clk 0:02:34]} 17. Be6 {[%clk 0:02:05]}  Rf6 {[%clk 0:02:30]} 18. exf5 {[%clk 0:02:02]}  gxf5 {[%clk 0:02:31]} 19. Bxf5+ {[%clk 0:02:01]}  Kg8 {[%clk 0:02:24]} 20. Qg4 {[%clk 0:01:57]}  Nf8 {[%clk 0:02:25]} 21. Ng3 {[%clk 0:01:52]}  e6 {[%clk 0:02:24]} 22. Be4 {[%clk 0:01:49]}  d5 {[%clk 0:02:25]} 23. Bf3 {[%clk 0:01:47]}  Rg6 {[%clk 0:02:25]} 24. Qh5 {[%clk 0:01:45]}  Qe8 {[%clk 0:02:09]} 25. f5 {[%clk 0:01:43]}  Rf6 {[%clk 0:02:10]} 26. Qg4 {[%clk 0:01:40]}  exf5 {[%clk 0:02:02]} 27. Qf4 {[%clk 0:01:40]}  Qe1+ {[%clk 0:01:55]} 28. Nf1 {[%clk 0:01:38]}  Ng6 {[%clk 0:01:56]} 29. Qc7 {[%clk 0:01:36]}  Rf7 {[%clk 0:01:54]} 30. Qd6 {[%clk 0:01:35]}  Bd4+ {[%clk 0:01:52]} 31. Be3 {[%clk 0:01:33]}  Bxe3+ {[%clk 0:01:52]} 32. Kh1 {[%clk 0:01:31]}  Qxa1 {[%clk 0:01:37]} 33. Qxg6+ {[%clk 0:01:32]}  Rg7 {[%clk 0:01:38]} 34. Qe6+ {[%clk 0:01:30]}  Kh8 {[%clk 0:01:38]} 35. Rxh6+ {[%clk 0:01:28]}  Bxh6 {[%clk 0:01:39]} 36. Qxh6+ {[%clk 0:01:29]}  Kg8 {[%clk 0:01:39]} 37. Qe6+ {[%clk 0:01:29]}  Rf7 {[%clk 0:01:32]} 38. Qg6+ {[%clk 0:01:27]}  Kf8 {[%clk 0:01:31]} 39. Qd6+ {[%clk 0:01:27]}  Kg7 {[%clk 0:01:27]} 40. Qg3+ {[%clk 0:01:22]}  Kh7 {[%clk 0:01:25]} 41. Qh4+ {[%clk 0:01:21]}  Kg8 {[%clk 0:01:26]} 42. Qg3+ {[%clk 0:01:20]}  Rg7 {[%clk 0:01:25]} 43. Qf2 {[%clk 0:01:18]}  Re8 {[%clk 0:01:26]} 44. h4 {[%clk 0:01:03]}  Qe1 {[%clk 0:01:26]} 0-1


[Site "https://www.chess.com"]

[Event "Titled Tuesday Blitz July 25 Early 2023"]
[White "Tokman, Ariel"]
[Black "Rodriguez Santiago, Jaime"]
[WhiteFideId "117420"]
[BlackFideId "3100898"]
[WhiteElo "2522"]
[BlackElo "2356"]
[Result "1-0"]
[Round "7"]
[TimeControl "180+2"]
[Date "2023.07.25"]
[WhiteClock "0:01:06"]
[BlackClock "0:00:00"]
[Board "119"]

1. c4 {[%clk 0:03:00]}  Nf6 {[%clk 0:02:57]} 2. Nf3 {[%clk 0:03:00]}  e6 {[%clk 0:02:55]} 3. Nc3 {[%clk 0:03:00]}  d5 {[%clk 0:02:54]} 4. d4 {[%clk 0:02:57]}  c5 {[%clk 0:02:53]} 5. cxd5 {[%clk 0:02:57]}  Nxd5 {[%clk 0:02:52]} 6. e4 {[%clk 0:02:55]}  Nxc3 {[%clk 0:02:53]} 7. bxc3 {[%clk 0:02:56]}  cxd4 {[%clk 0:02:53]} 8. cxd4 {[%clk 0:02:57]}  Bb4+ {[%clk 0:02:53]} 9. Bd2 {[%clk 0:02:58]}  Bxd2+ {[%clk 0:02:54]} 10. Qxd2 {[%clk 0:02:58]}  O-O {[%clk 0:02:55]} 11. Bd3 {[%clk 0:02:57]}  b6 {[%clk 0:02:53]} 12. O-O {[%clk 0:02:56]}  Bb7 {[%clk 0:02:53]} 13. Rfe1 {[%clk 0:02:56]}  Nc6 {[%clk 0:02:50]} 14. Qe3 {[%clk 0:02:47]}  Nb4 {[%clk 0:02:41]} 15. Bb1 {[%clk 0:02:44]}  Rc8 {[%clk 0:02:41]} 16. Qd2 {[%clk 0:02:34]}  a5 {[%clk 0:02:36]} 17. a3 {[%clk 0:02:34]}  Nc6 {[%clk 0:02:33]} 18. h4 {[%clk 0:02:31]}  Qd7 {[%clk 0:01:56]} 19. Ba2 {[%clk 0:02:21]}  Rfd8 {[%clk 0:01:48]} 20. Rad1 {[%clk 0:02:21]}  Qe7 {[%clk 0:01:36]} 21. Qe3 {[%clk 0:02:20]}  h6 {[%clk 0:01:08]} 22. Rb1 {[%clk 0:02:16]}  Qc7 {[%clk 0:01:01]} 23. d5 {[%clk 0:02:10]}  exd5 {[%clk 0:01:00]} 24. exd5 {[%clk 0:02:10]}  Nb8 {[%clk 0:00:41]} 25. Rec1 {[%clk 0:01:53]}  Qd6 {[%clk 0:00:25]} 26. Rxc8 {[%clk 0:01:51]}  Rxc8 {[%clk 0:00:13]} 27. Rxb6 {[%clk 0:01:51]}  Qc7 {[%clk 0:00:11]} 28. d6 {[%clk 0:01:44]}  Qc2 {[%clk 0:00:08]} 29. Bxf7+ {[%clk 0:01:39]}  Kxf7 {[%clk 0:00:07]} 30. Rxb7+ {[%clk 0:01:38]}  Kg8 {[%clk 0:00:07]} 31. Qe7 {[%clk 0:01:26]}  Qc3 {[%clk 0:00:04]} 32. Ne5 {[%clk 0:01:18]}  Qc1+ {[%clk 0:00:03]} 33. Kh2 {[%clk 0:01:16]}  Qf4+ {[%clk 0:00:04]} 34. Kh3 {[%clk 0:01:12]}  Qf5+ {[%clk 0:00:03]} 35. Kg3 {[%clk 0:01:08]}  Rc3+ {[%clk 0:00:00]} 36. f3 {[%clk 0:01:06]} 1-0


[Site "https://www.chess.com"]

[Event "Titled Tuesday Blitz July 25 Early 2023"]
[White "Kaplan, Avi Harrison"]
[Black "Matko, Ognjen"]
[WhiteFideId "30934559"]
[BlackFideId "14509717"]
[WhiteElo "2509"]
[BlackElo "2348"]
[Result "1-0"]
[Round "7"]
[TimeControl "180+2"]
[Date "2023.07.25"]
[WhiteClock "0:00:03"]
[BlackClock "0:00:03"]
[Board "122"]

1. b3 {[%clk 0:03:00]}  c5 {[%clk 0:02:59]} 2. Bb2 {[%clk 0:03:00]}  Nc6 {[%clk 0:02:59]} 3. e3 {[%clk 0:03:00]}  e5 {[%clk 0:02:52]} 4. g3 {[%clk 0:02:55]}  Nge7 {[%clk 0:02:50]} 5. Bg2 {[%clk 0:02:55]}  g6 {[%clk 0:02:47]} 6. Ne2 {[%clk 0:02:51]}  Bg7 {[%clk 0:02:46]} 7. O-O {[%clk 0:02:51]}  O-O {[%clk 0:02:45]} 8. c4 {[%clk 0:02:52]}  d5 {[%clk 0:02:41]} 9. cxd5 {[%clk 0:02:49]}  Nxd5 {[%clk 0:02:40]} 10. Nbc3 {[%clk 0:02:50]}  Ndb4 {[%clk 0:02:32]} 11. Ne4 {[%clk 0:02:42]}  Nd3 {[%clk 0:02:29]} 12. Ba3 {[%clk 0:02:32]}  Qa5 {[%clk 0:02:14]} 13. Nc1 {[%clk 0:02:21]}  Nxf2 {[%clk 0:02:00]} 14. Rxf2 {[%clk 0:01:51]}  Qxa3 {[%clk 0:01:58]} 15. Nd3 {[%clk 0:01:51]}  f5 {[%clk 0:01:43]} 16. Nd6 {[%clk 0:01:13]}  e4 {[%clk 0:01:38]} 17. Rc1 {[%clk 0:00:53]}  exd3 {[%clk 0:01:31]} 18. Bd5+ {[%clk 0:00:54]}  Kh8 {[%clk 0:01:31]} 19. Nf7+ {[%clk 0:00:55]}  Rxf7 {[%clk 0:01:30]} 20. Bxf7 {[%clk 0:00:56]}  Ne5 {[%clk 0:01:21]} 21. Bd5 {[%clk 0:00:51]}  Qxa2 {[%clk 0:01:12]} 22. Rxc5 {[%clk 0:00:45]}  a5 {[%clk 0:00:52]} 23. h4 {[%clk 0:00:42]}  Qa3 {[%clk 0:00:48]} 24. Rc7 {[%clk 0:00:40]}  Qd6 {[%clk 0:00:44]} 25. Qc1 {[%clk 0:00:39]}  Nc6 {[%clk 0:00:32]} 26. Rxc6 {[%clk 0:00:30]}  bxc6 {[%clk 0:00:31]} 27. Bxc6 {[%clk 0:00:31]}  Ra7 {[%clk 0:00:28]} 28. Bg2 {[%clk 0:00:30]}  Rc7 {[%clk 0:00:27]} 29. Qf1 {[%clk 0:00:27]}  Rc2 {[%clk 0:00:24]} 30. h5 {[%clk 0:00:26]}  Qxg3 {[%clk 0:00:20]} 31. hxg6 {[%clk 0:00:21]}  Qxg6 {[%clk 0:00:17]} 32. Qxd3 {[%clk 0:00:21]}  Rc1+ {[%clk 0:00:14]} 33. Rf1 {[%clk 0:00:19]}  Bf6 {[%clk 0:00:12]} 34. Rxc1 {[%clk 0:00:17]}  Be6 {[%clk 0:00:05]} 35. Qd6 {[%clk 0:00:13]}  Bh4 {[%clk 0:00:01]} 36. Rc6 {[%clk 0:00:06]}  Bxb3 {[%clk 0:00:01]} 37. Qb8+ {[%clk 0:00:03]}  Qg8 {[%clk 0:00:02]} 38. Rc8 {[%clk 0:00:02]}  Bf7 {[%clk 0:00:02]} 39. Rxg8+ {[%clk 0:00:02]}  Bxg8 {[%clk 0:00:03]} 40. Qb2+ {[%clk 0:00:02]}  Bf6 {[%clk 0:00:03]} 41. Qxf6# {[%clk 0:00:03]} 1-0


[Site "https://www.chess.com"]

[Event "Titled Tuesday Blitz July 25 Early 2023"]
[White "Osinovsky, Stepan"]
[Black "Turzo, Attila"]
[WhiteFideId "4157354"]
[BlackFideId "704954"]
[WhiteElo "2341"]
[BlackElo "2504"]
[Result "0-1"]
[Round "7"]
[TimeControl "180+2"]
[Date "2023.07.25"]
[WhiteClock "0:00:00"]
[BlackClock "0:01:05"]
[Board "123"]

1. Nf3 {[%clk 0:03:00]}  Nf6 {[%clk 0:02:59]} 2. g3 {[%clk 0:03:01]}  g6 {[%clk 0:03:00]} 3. Bg2 {[%clk 0:03:02]}  Bg7 {[%clk 0:03:01]} 4. O-O {[%clk 0:03:02]}  O-O {[%clk 0:03:02]} 5. d3 {[%clk 0:03:03]}  d6 {[%clk 0:03:02]} 6. e4 {[%clk 0:03:03]}  c5 {[%clk 0:02:58]} 7. Re1 {[%clk 0:03:02]}  Nc6 {[%clk 0:02:58]} 8. a4 {[%clk 0:03:01]}  Bg4 {[%clk 0:02:58]} 9. h3 {[%clk 0:03:01]}  Bxf3 {[%clk 0:02:58]} 10. Qxf3 {[%clk 0:03:00]}  Nd7 {[%clk 0:02:58]} 11. c3 {[%clk 0:02:55]}  Rb8 {[%clk 0:02:56]} 12. h4 {[%clk 0:02:52]}  h5 {[%clk 0:02:51]} 13. Qe2 {[%clk 0:01:58]}  a6 {[%clk 0:02:51]} 14. Nd2 {[%clk 0:01:34]}  b5 {[%clk 0:02:51]} 15. axb5 {[%clk 0:01:33]}  axb5 {[%clk 0:02:51]} 16. Nf1 {[%clk 0:01:33]}  b4 {[%clk 0:02:51]} 17. Bd2 {[%clk 0:01:34]}  Nde5 {[%clk 0:02:47]} 18. Ne3 {[%clk 0:01:31]}  e6 {[%clk 0:02:38]} 19. f4 {[%clk 0:01:23]}  Nd7 {[%clk 0:02:38]} 20. Bf3 {[%clk 0:01:24]}  bxc3 {[%clk 0:02:35]} 21. bxc3 {[%clk 0:01:23]}  Rb3 {[%clk 0:02:35]} 22. e5 {[%clk 0:00:57]}  d5 {[%clk 0:02:27]} 23. Reb1 {[%clk 0:00:55]}  Qb6 {[%clk 0:02:24]} 24. Qd1 {[%clk 0:00:51]}  Rxb1 {[%clk 0:02:15]} 25. Rxb1 {[%clk 0:00:52]}  Qa6 {[%clk 0:02:09]} 26. Be2 {[%clk 0:00:52]}  Ra8 {[%clk 0:02:04]} 27. Qb3 {[%clk 0:00:48]}  Rb8 {[%clk 0:01:56]} 28. Qc2 {[%clk 0:00:48]}  Bf8 {[%clk 0:01:55]} 29. Rxb8 {[%clk 0:00:47]}  Ndxb8 {[%clk 0:01:51]} 30. Kf2 {[%clk 0:00:46]}  Nd7 {[%clk 0:01:50]} 31. Qb2 {[%clk 0:00:43]}  d4 {[%clk 0:01:46]} 32. Nc4 {[%clk 0:00:42]}  dxc3 {[%clk 0:01:45]} 33. Bxc3 {[%clk 0:00:43]}  Nb4 {[%clk 0:01:42]} 34. Qa3 {[%clk 0:00:32]}  Qxa3 {[%clk 0:01:37]} 35. Nxa3 {[%clk 0:00:32]}  Nb6 {[%clk 0:01:37]} 36. Bd2 {[%clk 0:00:25]}  Be7 {[%clk 0:01:35]} 37. Nc4 {[%clk 0:00:24]}  N6d5 {[%clk 0:01:33]} 38. Bf1 {[%clk 0:00:24]}  Kf8 {[%clk 0:01:32]} 39. Ke2 {[%clk 0:00:23]}  Ke8 {[%clk 0:01:32]} 40. Bg2 {[%clk 0:00:23]}  Kd7 {[%clk 0:01:32]} 41. Be1 {[%clk 0:00:23]}  Kc6 {[%clk 0:01:30]} 42. Bf2 {[%clk 0:00:20]}  Kb5 {[%clk 0:01:30]} 43. Bf3 {[%clk 0:00:20]}  Nc6 {[%clk 0:01:27]} 44. Kd2 {[%clk 0:00:19]}  Ncb4 {[%clk 0:01:19]} 45. Ke2 {[%clk 0:00:18]}  Nb6 {[%clk 0:01:11]} 46. Ne3 {[%clk 0:00:14]}  Nc6 {[%clk 0:01:07]} 47. Nc4 {[%clk 0:00:11]}  Nd4+ {[%clk 0:01:05]} 48. Bxd4 {[%clk 0:00:11]}  cxd4 {[%clk 0:01:06]} 49. Nxb6 {[%clk 0:00:07]}  Kxb6 {[%clk 0:01:07]} 50. Be4 {[%clk 0:00:04]}  Bb4 {[%clk 0:01:06]} 51. Kf2 {[%clk 0:00:02]}  Kc5 {[%clk 0:01:06]} 52. Bf3 {[%clk 0:00:00]}  Bd2 {[%clk 0:01:05]} 0-1


[Site "https://www.chess.com"]

[Event "Titled Tuesday Blitz July 25 Early 2023"]
[White "Huynh, Lam Binh Nguyen"]
[Black "Kuznetsova, Olga"]
[WhiteFideId "12401633"]
[BlackFideId "4191323"]
[WhiteElo "2318"]
[BlackElo "2503"]
[Result "0-1"]
[Round "7"]
[TimeControl "180+2"]
[Date "2023.07.25"]
[WhiteClock "0:00:30"]
[BlackClock "0:00:42"]
[Board "125"]

1. d4 {[%clk 0:03:00]}  Nf6 {[%clk 0:02:59]} 2. Bf4 {[%clk 0:03:00]}  e6 {[%clk 0:02:59]} 3. e3 {[%clk 0:02:59]}  d5 {[%clk 0:02:59]} 4. c3 {[%clk 0:02:57]}  Bd6 {[%clk 0:03:00]} 5. Nd2 {[%clk 0:02:56]}  O-O {[%clk 0:02:57]} 6. Ngf3 {[%clk 0:02:55]}  h6 {[%clk 0:02:55]} 7. h3 {[%clk 0:02:50]}  c5 {[%clk 0:02:51]} 8. Bd3 {[%clk 0:02:49]}  Qc7 {[%clk 0:02:50]} 9. Ne5 {[%clk 0:02:45]}  Nc6 {[%clk 0:02:47]} 10. Ndf3 {[%clk 0:02:44]}  Ne4 {[%clk 0:02:41]} 11. O-O {[%clk 0:02:37]}  f5 {[%clk 0:02:21]} 12. Ng6 {[%clk 0:02:30]}  Rf6 {[%clk 0:02:20]} 13. Bxd6 {[%clk 0:02:29]}  Qxd6 {[%clk 0:02:20]} 14. Nge5 {[%clk 0:02:27]}  Bd7 {[%clk 0:02:15]} 15. Nxc6 {[%clk 0:02:21]}  bxc6 {[%clk 0:02:10]} 16. Ne5 {[%clk 0:02:17]}  Rb8 {[%clk 0:02:09]} 17. Qe2 {[%clk 0:02:13]}  cxd4 {[%clk 0:01:50]} 18. cxd4 {[%clk 0:02:05]}  c5 {[%clk 0:01:48]} 19. Bxe4 {[%clk 0:01:59]}  fxe4 {[%clk 0:01:48]} 20. Nxd7 {[%clk 0:01:59]}  Qxd7 {[%clk 0:01:48]} 21. dxc5 {[%clk 0:01:59]}  a5 {[%clk 0:01:22]} 22. b3 {[%clk 0:01:52]}  Qc6 {[%clk 0:01:08]} 23. Rfc1 {[%clk 0:01:48]}  Rbf8 {[%clk 0:01:05]} 24. a3 {[%clk 0:01:41]}  e5 {[%clk 0:01:06]} 25. b4 {[%clk 0:01:38]}  d4 {[%clk 0:01:03]} 26. b5 {[%clk 0:01:35]}  Qd5 {[%clk 0:01:02]} 27. exd4 {[%clk 0:01:29]}  exd4 {[%clk 0:01:02]} 28. Ra2 {[%clk 0:01:26]}  Rxf2 {[%clk 0:00:55]} 29. Qxf2 {[%clk 0:01:26]}  Rxf2 {[%clk 0:00:54]} 30. Rxf2 {[%clk 0:01:27]}  e3 {[%clk 0:00:55]} 31. Re2 {[%clk 0:01:17]}  d3 {[%clk 0:00:52]} 32. Rxe3 {[%clk 0:01:12]}  Qd4 {[%clk 0:00:52]} 33. Kf2 {[%clk 0:00:45]}  Qf4+ {[%clk 0:00:52]} 34. Rf3 {[%clk 0:00:46]}  Qxc1 {[%clk 0:00:52]} 35. Rxd3 {[%clk 0:00:46]}  Qxc5+ {[%clk 0:00:52]} 36. Re3 {[%clk 0:00:43]}  Qxb5 {[%clk 0:00:52]} 37. Kf3 {[%clk 0:00:39]}  Kf7 {[%clk 0:00:52]} 38. Re4 {[%clk 0:00:36]}  Qf1+ {[%clk 0:00:48]} 39. Kg3 {[%clk 0:00:34]}  Qd3+ {[%clk 0:00:48]} 40. Kf4 {[%clk 0:00:34]}  Qxa3 {[%clk 0:00:45]} 41. Re5 {[%clk 0:00:33]}  Qd6 {[%clk 0:00:42]} 42. Ke4 {[%clk 0:00:30]}  a4 {[%clk 0:00:42]} 0-1


[Site "https://www.chess.com"]

[Event "Titled Tuesday Blitz July 25 Early 2023"]
[White "Senft, Sean"]
[Black "Taboas Rodriguez, Daniel"]
[WhiteFideId "2044960"]
[BlackFideId "2208466"]
[WhiteElo "2306"]
[BlackElo "2497"]
[Result "0-1"]
[Round "7"]
[TimeControl "180+2"]
[Date "2023.07.25"]
[WhiteClock "0:00:16"]
[BlackClock "0:01:22"]
[Board "127"]

1. d4 {[%clk 0:03:00]}  Nf6 {[%clk 0:02:59]} 2. c4 {[%clk 0:02:58]}  g6 {[%clk 0:02:59]} 3. Nc3 {[%clk 0:02:50]}  Bg7 {[%clk 0:02:59]} 4. e4 {[%clk 0:02:49]}  d6 {[%clk 0:03:00]} 5. f4 {[%clk 0:02:47]}  O-O {[%clk 0:03:00]} 6. Nf3 {[%clk 0:02:47]}  Na6 {[%clk 0:03:01]} 7. Bd3 {[%clk 0:02:45]}  e5 {[%clk 0:03:01]} 8. fxe5 {[%clk 0:02:36]}  dxe5 {[%clk 0:03:02]} 9. d5 {[%clk 0:02:37]}  Nc5 {[%clk 0:03:02]} 10. Bc2 {[%clk 0:02:36]}  a5 {[%clk 0:03:03]} 11. O-O {[%clk 0:02:36]}  Qe7 {[%clk 0:02:59]} 12. Bg5 {[%clk 0:02:36]}  h6 {[%clk 0:02:59]} 13. Bh4 {[%clk 0:02:36]}  g5 {[%clk 0:02:50]} 14. Nxg5 {[%clk 0:02:19]}  hxg5 {[%clk 0:02:51]} 15. Bxg5 {[%clk 0:02:19]}  Ncd7 {[%clk 0:02:51]} 16. Rf3 {[%clk 0:02:09]}  Qc5+ {[%clk 0:02:51]} 17. Be3 {[%clk 0:02:04]}  Qxc4 {[%clk 0:02:50]} 18. Rg3 {[%clk 0:02:05]}  Kh8 {[%clk 0:02:12]} 19. Rh3+ {[%clk 0:01:58]}  Nh7 {[%clk 0:02:10]} 20. a3 {[%clk 0:01:10]}  Qa6 {[%clk 0:02:00]} 21. Bd3 {[%clk 0:00:52]}  Qf6 {[%clk 0:01:48]} 22. Qh5 {[%clk 0:00:30]}  Qg6 {[%clk 0:01:47]} 23. Qh4 {[%clk 0:00:31]}  Nf6 {[%clk 0:01:42]} 24. Rf3 {[%clk 0:00:21]}  Qh5 {[%clk 0:01:34]} 25. Qf2 {[%clk 0:00:19]}  Ng4 {[%clk 0:01:33]} 26. Qe2 {[%clk 0:00:17]}  Qxh2+ {[%clk 0:01:33]} 27. Kf1 {[%clk 0:00:17]}  Qh1+ {[%clk 0:01:27]} 28. Bg1 {[%clk 0:00:18]}  Nh2+ {[%clk 0:01:27]} 29. Kf2 {[%clk 0:00:19]}  Nxf3 {[%clk 0:01:26]} 30. Qxf3 {[%clk 0:00:18]}  Qh4+ {[%clk 0:01:23]} 31. Ke2 {[%clk 0:00:16]}  Bg4 {[%clk 0:01:22]} 0-1


[Site "https://www.chess.com"]

[Event "Titled Tuesday Blitz July 25 Early 2023"]
[White "Araujo Filho, Luiz Antonio Coel"]
[Black "Petrovic, Aleksa"]
[WhiteFideId "2130661"]
[BlackFideId "967629"]
[WhiteElo "2293"]
[BlackElo "2496"]
[Result "0-1"]
[Round "7"]
[TimeControl "180+2"]
[Date "2023.07.25"]
[WhiteClock "0:00:47"]
[BlackClock "0:02:04"]
[Board "128"]

1. d4 {[%clk 0:03:00]}  e6 {[%clk 0:02:59]} 2. Nf3 {[%clk 0:03:00]}  Nf6 {[%clk 0:02:59]} 3. e3 {[%clk 0:03:01]}  c5 {[%clk 0:02:58]} 4. Bd3 {[%clk 0:03:01]}  b6 {[%clk 0:02:58]} 5. Nbd2 {[%clk 0:03:01]}  Bb7 {[%clk 0:02:58]} 6. Qe2 {[%clk 0:03:01]}  Nc6 {[%clk 0:02:58]} 7. c3 {[%clk 0:03:01]}  cxd4 {[%clk 0:02:58]} 8. exd4 {[%clk 0:03:01]}  g6 {[%clk 0:02:56]} 9. O-O {[%clk 0:03:01]}  Bg7 {[%clk 0:02:57]} 10. Re1 {[%clk 0:03:02]}  O-O {[%clk 0:02:57]} 11. Nf1 {[%clk 0:03:01]}  d6 {[%clk 0:02:57]} 12. Bg5 {[%clk 0:02:59]}  Qc7 {[%clk 0:02:54]} 13. Ng3 {[%clk 0:02:57]}  Rfe8 {[%clk 0:02:53]} 14. Qd2 {[%clk 0:02:54]}  e5 {[%clk 0:02:51]} 15. Bxf6 {[%clk 0:02:26]}  Bxf6 {[%clk 0:02:51]} 16. d5 {[%clk 0:02:23]}  Ne7 {[%clk 0:02:48]} 17. c4 {[%clk 0:02:22]}  Bg7 {[%clk 0:02:47]} 18. h4 {[%clk 0:02:17]}  h6 {[%clk 0:02:44]} 19. h5 {[%clk 0:02:16]}  g5 {[%clk 0:02:32]} 20. Rac1 {[%clk 0:02:07]}  Bc8 {[%clk 0:02:28]} 21. Bb1 {[%clk 0:02:01]}  f5 {[%clk 0:02:26]} 22. Nxg5 {[%clk 0:01:52]}  hxg5 {[%clk 0:02:21]} 23. Qxg5 {[%clk 0:01:52]}  Kh7 {[%clk 0:02:15]} 24. Nxf5 {[%clk 0:01:49]}  Bxf5 {[%clk 0:02:15]} 25. Bxf5+ {[%clk 0:01:50]}  Nxf5 {[%clk 0:02:15]} 26. Qxf5+ {[%clk 0:01:50]}  Kh8 {[%clk 0:02:10]} 27. h6 {[%clk 0:01:03]}  Bxh6 {[%clk 0:02:07]} 28. Re3 {[%clk 0:00:47]}  Bxe3 {[%clk 0:02:04]} 0-1


[Site "https://www.chess.com"]